fUST/lending_fUST_20251225
["ID","MTS","AMOUNT","RATE_DAILY","PERIOD"]
[399679973,1766614232442,-426.61180761,0.00012518,2]
[399679974,1766614232451,-665.91436844,0.00012518,2]
[399679975,1766614232462,-1207.09481067,0.00013064,2]
[399679976,1766614232472,-50000.0,0.00013064,2]
[399679977,1766614232482,-234911.80936585,0.00013065,2]
[399679981,1766614238355,-590.20098587,0.00013065,2]
[399679984,1766614238414,-123077.48877111,0.00013065,2]
[399679985,1766614238424,-496.47127164,0.00013165,2]
[399679986,1766614238434,-1000.0,0.00013165,2]
[399679987,1766614238444,-1000.0,0.00013165,2]
[399679988,1766614238454,-1000.0,0.00013165,2]
[399679989,1766614238464,-1000.0,0.00013165,2]
[399679990,1766614238474,-1000.0,0.00013165,2]
[399679991,1766614238484,-999.99,0.00013165,2]
[399679992,1766614238495,-2312.83697232,0.00013165,2]
[399679993,1766614238505,-151.0,0.000132,2]
[399679994,1766614238514,-151.0,0.000132,2]
[399679995,1766614238524,-1362.0,0.00013268,2]
[399679996,1766614238534,-632.0,0.00013268,2]
[399679997,1766614238544,-2160.0,0.00013268,2]
[399679998,1766614238554,-500.0,0.00013273,2]
[399679999,1766614238564,-500.0,0.00013273,2]
[399680000,1766614238574,-500.0,0.00013273,2]
[399680001,1766614238584,-500.0,0.00013273,2]
[399680002,1766614238595,-500.0,0.00013273,2]
[399680003,1766614238605,-500.0,0.00013273,2]
[399680004,1766614238615,-500.0,0.00013273,2]
[399680005,1766614238625,-500.0,0.00013273,2]
[399680006,1766614238635,-500.0,0.00013273,2]
[399680007,1766614238648,-500.0,0.00013273,2]
[399680008,1766614238659,-500.0,0.00013273,2]
[399680009,1766614238668,-500.0,0.00013273,2]
[399680010,1766614238679,-500.0,0.00013273,2]
[399680011,1766614238689,-444.5575704,0.00013273,2]
[399680012,1766614238699,-500.0,0.00013273,2]
[399680013,1766614238710,-2183.79724923,0.0001333,2]
[399680014,1766614238720,-30473.4290723,0.00013563,2]
[399680015,1766614238729,-3203.3906913,0.00013563,2]
[399680016,1766614238739,-345.0,0.00013599,2]
[399680017,1766614238749,-345.0,0.00013599,2]
[399680018,1766614238759,-345.0,0.00013599,2]
[399680019,1766614238768,-345.0,0.00013599,2]
[399680020,1766614238779,-345.0,0.00013599,2]
[399680021,1766614238788,-345.0,0.00013599,2]
[399680022,1766614238798,-345.0,0.00013599,2]
[399680023,1766614238807,-345.0,0.00013599,2]
[399680024,1766614238817,-345.0,0.00013599,2]
[399680025,1766614238826,-345.0,0.00013599,2]
[399680026,1766614238836,-345.0,0.00013599,2]
[399680027,1766614238846,-345.0,0.00013599,2]
[399680028,1766614238856,-345.0,0.00013599,2]
[399680029,1766614238866,-345.0,0.00013599,2]
[399680030,1766614238878,-345.0,0.00013599,2]
[399680031,1766614238889,-345.0,0.00013599,2]
[399680032,1766614238900,-345.0,0.00013599,2]
[399680033,1766614238911,-345.0,0.00013599,2]
[399680034,1766614238923,-345.0,0.00013599,2]
[399680035,1766614238934,-345.0,0.00013599,2]
[399680036,1766614238945,-345.0,0.00013599,2]
[399680037,1766614238955,-345.0,0.00013599,2]
[399680038,1766614238966,-345.0,0.00013599,2]
[399680039,1766614238976,-345.0,0.00013599,2]
[399680040,1766614238986,-345.0,0.00013599,2]
[399680041,1766614238998,-345.0,0.00013599,2]
[399680042,1766614239008,-345.0,0.00013599,2]
[399680043,1766614239018,-345.0,0.00013599,2]
[399680044,1766614239028,-345.0,0.00013599,2]
[399680045,1766614239038,-345.0,0.00013599,2]
[399680046,1766614239048,-345.0,0.00013599,2]
[399680047,1766614239058,-345.0,0.00013599,2]
[399680048,1766614239067,-345.0,0.00013599,2]
[399680049,1766614239078,-345.0,0.00013599,2]
[399680050,1766614239088,-345.0,0.00013599,2]
[399680051,1766614239098,-345.0,0.00013599,2]
[399680052,1766614239109,-345.0,0.00013599,2]
[399680053,1766614239119,-345.0,0.00013599,2]
[399680054,1766614239131,-345.0,0.00013599,2]
[399680055,1766614239142,-345.0,0.00013599,2]
[399680056,1766614239151,-345.0,0.00013599,2]
[399680057,1766614239163,-152.57885444,0.00013599,2]
[399680058,1766614239173,-300.0,0.00013673,2]
[399680059,1766614239183,-500.0,0.00013698,2]
[399680060,1766614239195,-500.0,0.00013698,2]
[399680061,1766614239211,-500.0,0.00013698,2]
[399680062,1766614239224,-500.0,0.00013698,2]
[399680063,1766614239233,-622.545246,0.00013698,2]
[399680064,1766614239243,-959.949467,0.00013699,2]
[399680065,1766614239253,-12470.1969435,0.00013699,2]
[399680066,1766614239262,-161.796606,0.00013699,2]
[399680067,1766614239271,-161.796606,0.00013699,2]
[399680068,1766614239281,-161.796606,0.00013699,2]
[399680069,1766614239291,-161.796606,0.00013699,2]
[399680070,1766614239302,-151.0,0.00013699,2]
[399680071,1766614239312,-226.447662,0.00013699,2]
[399680072,1766614239322,-151.0,0.00013699,2]
[399680073,1766614239332,-151.0,0.00013699,2]
[399680074,1766614239342,-151.0,0.00013699,2]
[399680075,1766614239351,-151.0,0.00013699,2]
[399680076,1766614239361,-224.355358,0.00013699,2]
[399680077,1766614239371,-1500.0,0.00013699,2]
[399680078,1766614239381,-151.0,0.00013699,2]
[399680079,1766614239391,-151.0,0.00013699,2]
[399680080,1766614239401,-1000.0,0.00013699,2]
[399680081,1766614239411,-151.0,0.00013699,2]
[399680082,1766614239421,-500.0,0.00013699,2]
[399680083,1766614239431,-500.0,0.00013699,2]
[399680084,1766614239440,-500.0,0.00013699,2]
[399680085,1766614239450,-500.0,0.00013699,2]
[399680086,1766614239460,-285.72893851,0.00013699,2]
[399680087,1766614239470,-500.0,0.00013699,2]
[399680088,1766614239480,-500.0,0.00013699,2]
[399680089,1766614239490,-500.0,0.00013699,2]
[399680090,1766614239500,-500.0,0.00013699,2]
[399680091,1766614239510,-500.0,0.00013699,2]
[399680092,1766614239520,-500.0,0.00013699,2]
[399680093,1766614239530,-500.0,0.00013699,2]
[399680094,1766614239539,-500.0,0.00013699,2]
[399680095,1766614239549,-500.0,0.00013699,2]
[399680096,1766614239559,-500.0,0.00013699,2]
[399680097,1766614239568,-500.0,0.00013699,2]
[399680098,1766614239578,-500.0,0.00013699,2]
[399680099,1766614239588,-423.52736988,0.00013699,2]
[399680100,1766614239598,-500.0,0.00013699,2]
[399680101,1766614239608,-500.0,0.00013699,2]
[399680102,1766614239617,-500.0,0.00013699,2]
[399680103,1766614239629,-500.0,0.00013699,2]
[399680104,1766614239641,-500.0,0.00013699,2]
[399680105,1766614239651,-500.0,0.00013699,2]
[399680106,1766614239660,-500.0,0.00013699,2]
[399680107,1766614239670,-500.0,0.00013699,2]
[399680108,1766614239679,-500.0,0.00013699,2]
[399680109,1766614239691,-613.59715472,0.00013699,2]
[399680110,1766614239701,-500.0,0.00013699,2]
[399680111,1766614239711,-500.0,0.00013699,2]
[399680112,1766614239721,-500.0,0.00013699,2]
[399680113,1766614239731,-500.0,0.00013699,2]
[399680114,1766614239740,-500.0,0.00013699,2]
[399680115,1766614239750,-500.0,0.00013699,2]
[399680116,1766614239760,-500.0,0.00013699,2]
[399680117,1766614239770,-500.0,0.00013699,2]
[399680118,1766614239779,-500.0,0.00013699,2]
[399680119,1766614239789,-500.0,0.00013699,2]
[399680120,1766614239805,-500.0,0.00013699,2]
[399680121,1766614239820,-500.0,0.00013699,2]
[399680122,1766614239830,-500.0,0.00013699,2]
[399680123,1766614239842,-500.0,0.00013699,2]
[399680124,1766614239861,-500.0,0.00013699,2]
[399680125,1766614239873,-500.0,0.00013699,2]
[399680126,1766614239882,-500.0,0.00013699,2]
[399680127,1766614239892,-440.83623024,0.00013699,2]
[399680128,1766614239902,-500.0,0.00013699,2]
[399680129,1766614239911,-500.0,0.00013699,2]
[399680130,1766614239920,-500.0,0.00013699,2]
[399680131,1766614239930,-500.0,0.00013699,2]
[399680132,1766614239942,-500.0,0.00013699,2]
[399680133,1766614239951,-500.0,0.00013699,2]
[399680134,1766614239961,-500.0,0.00013699,2]
[399680135,1766614239971,-500.0,0.00013699,2]
[399680136,1766614239980,-500.0,0.00013699,2]
[399680137,1766614239989,-500.0,0.00013699,2]
[399680138,1766614239999,-500.0,0.00013699,2]
[399680139,1766614240009,-500.0,0.00013699,2]
[399680140,1766614240018,-500.0,0.00013699,2]
[399680141,1766614240027,-500.0,0.00013699,2]
[399680142,1766614240037,-500.0,0.00013699,2]
[399680143,1766614240047,-500.0,0.00013699,2]
[399680144,1766614240056,-151.0,0.00013699,2]
[399680145,1766614240066,-151.0,0.00013699,2]
[399680146,1766614240076,-151.0,0.00013699,2]
[399680147,1766614240085,-151.0,0.00013699,2]
[399680148,1766614240094,-156.588144,0.00013699,2]
[399680149,1766614240104,-161.796606,0.00013699,2]
[399680150,1766614240113,-161.796606,0.00013699,2]
[399680151,1766614240123,-161.796606,0.00013699,2]
[399680152,1766614240132,-161.796606,0.00013699,2]
[399680154,1766614240142,-151.0,0.00013699,2]
[399680155,1766614240151,-151.0,0.00013699,2]
[399680156,1766614240161,-151.0,0.00013699,2]
[399680157,1766614240171,-151.0,0.00013699,2]
[399680158,1766614240181,-151.0,0.00013699,2]
[399680159,1766614240191,-151.0,0.00013699,2]
[399680160,1766614240200,-299.8393676,0.00013699,2]
[399680162,1766614240210,-151.0,0.00013699,2]
[399680163,1766614240220,-151.0,0.00013699,2]
[399680164,1766614240230,-822.50139083,0.00013713,2]
[399680165,1766614240240,-1000.0,0.00013821,2]
[399680166,1766614240250,-1000.0,0.00013821,2]
[399680167,1766614240261,-1000.0,0.00013821,2]
[399680168,1766614240271,-1000.0,0.00013821,2]
[399680169,1766614240285,-1000.0,0.00013821,2]
[399680170,1766614240295,-1000.0,0.00013821,2]
[399680171,1766614240305,-1000.0,0.00013821,2]
[399680172,1766614240314,-1000.0,0.00013821,2]
[399680173,1766614240324,-1000.0,0.00013821,2]
[399680174,1766614240334,-1000.0,0.00013821,2]
[399680176,1766614240343,-1000.0,0.00013821,2]
[399680177,1766614240353,-1000.0,0.00013821,2]
[399680178,1766614240363,-1000.0,0.00013821,2]
[399680179,1766614240373,-1000.0,0.00013821,2]
[399680180,1766614240382,-600.0,0.0001387,2]
[399680181,1766614240392,-260.28278362,0.0001387,2]
[399680182,1766614240403,-468.50901052,0.0001387,2]
[399680183,1766614240413,-832.9049076,0.0001387,2]
[399680184,1766614240423,-1300.1125042,0.0001387,2]
[399680185,1766614240433,-304.08217073,0.0001387,2]
[399680186,1766614240443,-294.59093682,0.0001387,2]
[399680188,1766614240454,-347.52248083,0.0001387,2]
[399680190,1766614240464,-336.33868101,0.00013888,2]
[399680192,1766614240474,-682.31612144,0.00013962,2]
[399680194,1766614240484,-177.0,0.00014058,2]
[399680195,1766614240493,-600.0,0.00014221,2]
[399680196,1766614240503,-151.0,0.00014238,2]
[399680197,1766614240512,-151.0,0.00014238,2]
[399680198,1766614240522,-161.796606,0.00014238,2]
[399680199,1766614240532,-161.796606,0.00014238,2]
[399680200,1766614240542,-161.796606,0.00014238,2]
[399680201,1766614240552,-161.796606,0.00014238,2]
[399680202,1766614240562,-151.0,0.00014238,2]
[399680203,1766614240571,-151.0,0.00014238,2]
[399680204,1766614240581,-151.0,0.00014238,2]
[399680205,1766614240591,-176.905887,0.00014238,2]
[399680206,1766614240601,-151.0,0.00014238,2]
[399680207,1766614240611,-204.169731,0.00014246,2]
[399680208,1766614240621,-200.0,0.00014246,2]
[399680210,1766614240631,-1000.0,0.00014247,2]
[399680211,1766614240644,-1000.0,0.00014247,2]
[399680213,1766614240654,-1000.0,0.00014247,2]
[399680214,1766614240664,-188.443821,0.00014247,2]
[399680215,1766614240674,-179.76200604,0.00014247,2]
[399680216,1766614240686,-1000.0,0.00014247,2]
[399680217,1766614240696,-1000.0,0.00014247,2]
[399680218,1766614240706,-1000.0,0.00014247,2]
[399680219,1766614240716,-655.33666974,0.00014247,2]
[399680220,1766614240727,-1000.0,0.00014247,2]
[399680221,1766614240737,-369.56329434,0.00014247,2]
[399680222,1766614240747,-1000.0,0.00014247,2]
[399680223,1766614240757,-1000.0,0.00014247,2]
[399680224,1766614240766,-1000.0,0.00014247,2]
[399680225,1766614240776,-1000.0,0.00014247,2]
[399680226,1766614240786,-1000.0,0.00014247,2]
[399680227,1766614240795,-1000.0,0.00014247,2]
[399680228,1766614240805,-1000.0,0.00014247,2]
[399680229,1766614240814,-1000.0,0.00014247,2]
[399680230,1766614240824,-1000.0,0.00014247,2]
[399680231,1766614240834,-1000.0,0.00014247,2]
[399680232,1766614240844,-1000.0,0.00014247,2]
[399680233,1766614240855,-1000.0,0.00014247,2]
[399680234,1766614240864,-462.5984453,0.00014247,2]
[399680235,1766614240876,-1000.0,0.00014247,2]
[399680236,1766614240885,-1000.0,0.00014247,2]
[399680237,1766614240895,-1000.0,0.00014247,2]
[399680238,1766614240905,-1000.0,0.00014247,2]
[399680239,1766614240917,-1000.0,0.00014247,2]
[399680240,1766614240927,-341.19967289,0.00014247,2]
[399680241,1766614240937,-1000.0,0.00014247,2]
[399680242,1766614240947,-1000.0,0.00014247,2]
[399680243,1766614240957,-1000.0,0.00014247,2]
[399680244,1766614240966,-1000.0,0.00014247,2]
[399680245,1766614240976,-1000.0,0.00014247,2]
[399680246,1766614240987,-1000.0,0.00014247,2]
[399680247,1766614240996,-1000.0,0.00014247,2]
[399680248,1766614241006,-1000.0,0.00014247,2]
[399680249,1766614241016,-1000.0,0.00014247,2]
[399680250,1766614241026,-1000.0,0.00014247,2]
[399680251,1766614241037,-1000.0,0.00014247,2]
[399680252,1766614241046,-1000.0,0.00014247,2]
[399680253,1766614241057,-1000.0,0.00014247,2]
[399680254,1766614241067,-1000.0,0.00014247,2]
[399680255,1766614241076,-1000.0,0.00014247,2]
[399680256,1766614241086,-1000.0,0.00014247,2]
[399680257,1766614241095,-1132.30285891,0.00014247,2]
[399680258,1766614241105,-1000.0,0.00014247,2]
[399680259,1766614241115,-1000.0,0.00014247,2]
[399680260,1766614241126,-1000.0,0.00014247,2]
[399680261,1766614241135,-1000.0,0.00014247,2]
[399680262,1766614241145,-1000.0,0.00014247,2]
[399680263,1766614241155,-1000.0,0.00014247,2]
[399680264,1766614241164,-640.55121323,0.00014247,2]
[399680265,1766614241174,-1000.0,0.00014247,2]
[399680266,1766614241184,-1000.0,0.00014247,2]
[399680267,1766614241194,-1000.0,0.00014247,2]
[399680268,1766614241203,-1000.0,0.00014247,2]
[399680269,1766614241212,-151.0,0.00014247,2]
[399680270,1766614241222,-151.0,0.00014247,2]
[399680271,1766614241231,-161.796606,0.00014247,2]
[399680272,1766614241242,-161.796606,0.00014247,2]
[399680273,1766614241251,-161.796606,0.00014247,2]
[399680274,1766614241261,-161.796606,0.00014247,2]
[399680275,1766614241271,-151.0,0.00014247,2]
[399680276,1766614241281,-151.0,0.00014247,2]
[399680277,1766614241290,-151.0,0.00014247,2]
[399680278,1766614241300,-542.46087242,0.00014317,2]
[399680279,1766614241309,-1500.0,0.00014368,2]
[399680280,1766614241319,-1500.0,0.00014368,2]
[399680281,1766614241329,-1500.0,0.00014368,2]
[399680282,1766614241338,-1500.0,0.00014368,2]
[399680283,1766614241348,-1500.0,0.00014368,2]
[399680284,1766614241359,-1500.0,0.00014368,2]
[399680285,1766614241369,-521.33743459,0.00014368,2]
[399680286,1766614241380,-793.7052541,0.00014368,2]
[399680287,1766614241390,-1500.0,0.00014368,2]
[399680288,1766614241399,-1500.0,0.00014368,2]
[399680289,1766614241409,-1500.0,0.00014368,2]
[399680290,1766614241419,-1500.0,0.00014368,2]
[399680291,1766614241429,-1500.0,0.00014368,2]
[399680292,1766614241439,-1562.98262435,0.00014368,2]
[399680293,1766614241448,-160.0,0.00014396,2]
[399680294,1766614241458,-71007.29613917,0.000144,2]
[399680295,1766614241469,-500.0,0.000144,5]
[399680296,1766614241478,-151.0,0.000144,2]
[399680297,1766614241488,-151.0,0.000144,2]
[399680298,1766614241498,-161.796606,0.000144,2]
[399680299,1766614241508,-161.796606,0.000144,2]
[399680300,1766614241518,-161.796606,0.000144,2]
[399680301,1766614241527,-161.7966,0.000144,2]
[399680302,1766614241538,-151.0,0.000144,2]
[399680303,1766614241548,-515.32839191,0.000144,5]
[399680304,1766614241560,-151.0,0.000144,2]
[399680305,1766614241571,-151.0,0.000144,2]
[399680306,1766614241581,-500.0,0.00014516,2]
[399680307,1766614241590,-500.0,0.00014516,2]
[399680308,1766614241599,-500.0,0.00014516,2]
[399680309,1766614241609,-500.0,0.00014516,2]
[399680310,1766614241619,-500.0,0.00014516,2]
[399680311,1766614241631,-500.0,0.00014516,2]
[399680312,1766614241642,-500.0,0.00014516,2]
[399680313,1766614241653,-500.0,0.00014516,2]
[399680314,1766614241663,-500.0,0.00014516,2]
[399680315,1766614241672,-500.0,0.00014516,2]
[399680316,1766614241683,-500.0,0.00014516,2]
[399680317,1766614241693,-500.0,0.00014516,2]
[399680318,1766614241703,-500.0,0.00014516,2]
[399680319,1766614241714,-500.0,0.00014516,2]
[399680320,1766614241724,-500.0,0.00014516,2]
[399680321,1766614241734,-500.0,0.00014516,2]
[399680322,1766614241744,-333.10353808,0.00014516,2]
[399680323,1766614241754,-96466.80212323,0.00014543,30]
[399680324,1766614241763,-900.0,0.00014768,2]
[399680325,1766614241773,-1500.0,0.00014795,2]
[399680326,1766614241782,-1500.0,0.00014795,2]
[399680327,1766614241791,-1500.0,0.00014795,2]
[399680328,1766614241801,-1598.60328616,0.00014795,2]
[399680329,1766614241811,-1500.0,0.00014795,2]
[399680330,1766614241821,-1500.0,0.00014795,2]
[399680331,1766614241832,-1500.0,0.00014795,2]
[399680332,1766614241842,-412.96459635,0.00014795,2]
[399680333,1766614241852,-1500.0,0.00014795,2]
[399680334,1766614241862,-1500.0,0.00014795,2]
[399680335,1766614241872,-1500.0,0.00014795,2]
[399680336,1766614241881,-1500.0,0.00014795,2]
[399680337,1766614241892,-914.23935434,0.00014795,2]
[399680338,1766614241902,-1159.43590819,0.00014795,2]
[399680339,1766614241912,-1500.0,0.00014795,2]
[399680340,1766614241921,-1500.0,0.00014795,2]
[399680341,1766614241931,-1515.06802739,0.00014795,2]
[399680342,1766614241940,-1500.0,0.00014795,2]
[399680343,1766614241950,-1500.0,0.00014795,2]
[399680344,1766614241960,-1500.0,0.00014795,2]
[399680345,1766614241970,-1500.0,0.00014795,2]
[399680346,1766614241979,-507.00419529,0.00014795,2]
[399680347,1766614241989,-1500.0,0.00014795,2]
[399680348,1766614242000,-1569.92019203,0.00014795,2]
[399680349,1766614242010,-703.99114667,0.00014795,2]
[399680350,1766614242020,-1500.0,0.00014795,2]
[399680351,1766614242030,-1500.0,0.00014795,2]
[399680352,1766614242039,-1500.0,0.00014795,2]
[399680353,1766614242049,-1500.0,0.00014795,2]
[399680354,1766614242059,-1500.0,0.00014795,2]
[399680355,1766614242069,-1015.81373727,0.00014795,2]
[399680356,1766614242078,-1500.0,0.00014795,2]
[399680357,1766614242087,-1500.0,0.00014795,2]
[399680358,1766614242097,-1500.0,0.00014795,2]
[399680359,1766614242107,-1500.0,0.00014795,2]
[399680360,1766614242116,-1500.0,0.00014795,2]
[399680361,1766614242127,-1500.0,0.00014795,2]
[399680362,1766614242136,-1500.0,0.00014795,2]
[399680363,1766614242146,-1500.0,0.00014795,2]
[399680364,1766614242155,-1500.0,0.00014795,2]
[399680365,1766614242165,-1500.0,0.00014795,2]
[399680366,1766614242175,-1500.0,0.00014795,2]
[399680367,1766614242184,-1500.0,0.00014795,2]
[399680368,1766614242194,-420.94629552,0.00014795,2]
[399680369,1766614242203,-1500.0,0.00014795,2]
[399680370,1766614242213,-1500.0,0.00014795,2]
[399680371,1766614242223,-1500.0,0.00014795,2]
[399680372,1766614242233,-1102.88440965,0.00014795,2]
[399680373,1766614242242,-1500.0,0.00014795,2]
[399680374,1766614242251,-1500.0,0.00014795,2]
[399680375,1766614242261,-300.0,0.000148,2]
[399680376,1766614242272,-375.9334429,0.00014814,2]
[399680377,1766614242282,-593.56189677,0.000149,2]
[399680378,1766614242291,-2000.0,0.00014916,2]
[399680379,1766614242300,-2000.0,0.00014916,2]
[399680380,1766614242309,-2000.0,0.00014916,2]
[399680381,1766614242319,-2000.0,0.00014916,2]
[399680382,1766614242329,-2000.0,0.00014916,2]
[399680383,1766614242339,-2000.0,0.00014916,2]
[399680384,1766614242349,-2000.0,0.00014916,2]
[399680385,1766614242359,-2000.0,0.00014916,2]
[399680386,1766614242368,-2000.0,0.00014916,2]
[399680387,1766614242378,-2000.0,0.00014916,2]
[399680388,1766614242387,-2000.0,0.00014916,2]
[399680389,1766614242397,-260.0,0.00014944,2]
[399680390,1766614242406,-1016.50387654,0.00015,2]
[399680391,1766614242416,-159.8,0.00015,2]
[399680392,1766614242426,-150.63324615,0.00015,2]
[399680393,1766614242435,-501.3650827,0.00015,2]
[399680394,1766614242650,-80000.0,0.00015,2]
[399680395,1766614242661,-4060.85742975,0.00015,30]
[399680396,1766614242670,-1000.0,0.00015,15]
[399680397,1766614242680,-27466.08270103,0.00015,2]
[399680398,1766614242691,-477.0,0.00015,2]
[399680399,1766614242700,-20415.0,0.00015,2]
[399680400,1766614242712,-287.0,0.00015,2]
[399680401,1766614242722,-241.0,0.00015,2]
[399680402,1766614242732,-4775.14850547,0.00015053,2]
[399680403,1766614242742,-627.0,0.00015068,2]
[399680404,1766614242751,-819.67823,0.00015068,2]
[399680405,1766614242760,-800.0,0.00015068,2]
[399680406,1766614242770,-15360.39122251,0.00015105,2]
[399680407,1766614242779,-61537.76956036,0.00015174,2]
[399680408,1766614242835,-38462.23043964,0.00015174,2]
[399680409,1766614242844,-627.0,0.00015205,2]
[399680410,1766614242855,-720.0,0.00015257,2]
[399680411,1766614242865,-249.999999,0.0001527,2]
[399680412,1766614242875,-6799.5411091,0.00015281,2]
[399680413,1766614242885,-158.0,0.000153,2]
[399680414,1766614242896,-157.47471014,0.000153,2]
[399680416,1766614242906,-333.33333333,0.000153,2]
[399680417,1766614242916,-1041.42323373,0.000153,2]
[399680418,1766614242926,-1190.99230477,0.000153,2]
[399680419,1766614242937,-1200.0,0.00015316,2]
[399680420,1766614242947,-627.0,0.00015342,2]
[399680421,1766614242956,-1905.20067233,0.00015342,2]
[399680422,1766614242966,-2147.09725642,0.00015342,2]
[399680423,1766614242977,-1151.80867557,0.00015342,2]
[399680424,1766614242986,-2000.0,0.00015342,2]
[399680425,1766614242996,-2000.0,0.00015342,2]
[399680426,1766614243006,-2000.0,0.00015342,2]
[399680427,1766614243016,-2000.0,0.00015342,2]
[399680428,1766614243026,-2000.0,0.00015342,2]
[399680429,1766614243036,-163.08280704,0.00015342,2]
[399680430,1766614243046,-2000.0,0.00015342,2]
[399680431,1766614243056,-1633.31530987,0.00015342,2]
[399680432,1766614243066,-2000.0,0.00015342,2]
[399680433,1766614243076,-225.05169486,0.00015342,2]
[399680434,1766614243086,-382.29692958,0.00015342,2]
[399680435,1766614243096,-1005.08020609,0.00015342,2]
[399680436,1766614243107,-2000.0,0.00015342,2]
[399680437,1766614243116,-1463.1498413,0.00015342,2]
[399680439,1766614243128,-2000.0,0.00015342,2]
[399680441,1766614243138,-1976.13612431,0.00015342,2]
[399680442,1766614243148,-2000.0,0.00015342,2]
[399680443,1766614243158,-795.17970332,0.00015342,2]
[399680444,1766614243168,-2000.0,0.00015342,2]
[399680445,1766614243178,-289.10920786,0.00015342,2]
[399680446,1766614243188,-2000.0,0.00015342,2]
[399680447,1766614243198,-1876.97742534,0.00015342,2]
[399680448,1766614243208,-2000.0,0.00015342,2]
[399680450,1766614243218,-2000.0,0.00015342,2]
[399680452,1766614243227,-348.98115429,0.00015342,2]
[399680462,1766614244625,-842.0,0.00015342,2]
[399680865,1766615432459,-2000.0,0.00011797,2]
[399680868,1766615432519,-768.7215865,0.00011797,2]
[399680869,1766615432530,-586.0,0.00011797,2]
[399680871,1766615432540,-150.0,0.00011805,2]
[399680872,1766615432550,-5000.0,0.00011813,2]
[399680873,1766615432560,-1200.0,0.0001193,2]
[399680874,1766615432570,-300.0,0.00011931,2]
[399680875,1766615432581,-300.0,0.00011931,2]
[399680876,1766615432592,-300.0,0.00011931,2]
[399680877,1766615432601,-2690.31217635,0.00011932,2]
[399680878,1766615432612,-9021.91360785,0.00012962,2]
[399680879,1766615432623,-500.0,0.00012963,2]
[399680880,1766615432633,-256.26864475,0.00012963,2]
[399680881,1766615432644,-500.0,0.00012963,2]
[399680882,1766615432655,-500.0,0.00012963,2]
[399680883,1766615432666,-204.4161566,0.00012963,2]
[399680884,1766615432677,-163.3440736,0.00012963,2]
[399680885,1766615432687,-500.0,0.00012963,2]
[399680886,1766615432697,-518.12778331,0.00012963,2]
[399680887,1766615432708,-14633.18432811,0.00012964,2]
[399680905,1766615438616,-72391.16867295,0.00012964,2]
[399680907,1766615438628,-745.73680158,0.00012964,2]
[399680913,1766615438676,-15650.0000001,0.00012964,2]
[399680915,1766615438688,-216721.48020789,0.00012964,2]
[399681086,1766615440658,-8823.6,0.00012964,2]
[399681093,1766615440716,-1029.00146496,0.00012964,2]
[399681351,1766615443745,-13018.84619154,0.00012964,2]
[399681401,1766615446714,-305015.86515474,0.00012964,2]
[399681402,1766615446831,-5164.72174361,0.00012964,2]
[399681709,1766616631584,-300.0,0.00012326,2]
[399681711,1766616631595,-403.71822053,0.00012326,2]
[399681713,1766616631608,-796.28177947,0.00012326,2]
[399681715,1766616631618,-1773.70168225,0.00012327,2]
[399681718,1766616631630,-1961.6034078,0.00012327,2]
[399681720,1766616631642,-1264.69490995,0.00012327,2]
[399681723,1766616631651,-594.0,0.00012327,2]
[399681725,1766616631661,-150.0,0.00012515,2]
[399681728,1766616631670,-300.0,0.00012701,2]